[Event "Titled Tuesday Blitz January 17 Early 2023"]
[White "Szpar, Milosz"]
[Black "Paichadze, Luka"]
[WhiteFideId "1184989"]
[BlackFideId "13602934"]
[WhiteElo "2447"]
[BlackElo "2515"]
[Result "1-0"]
[Round "08"]
[TimeControl "180+2"]
[Date "2023.01.17"]
[WhiteClock "0:00:15"]
[BlackClock "0:00:18"]

1. e4 {[%clk 0:02:28]}  c6 {[%clk 0:02:58]} 2. d4 {[%clk 0:02:28]}  d5 {[%clk 0:02:58]} 3. e5 {[%clk 0:02:28]}  c5 {[%clk 0:02:58]} 4. dxc5 {[%clk 0:02:29]}  e6 {[%clk 0:02:55]} 5. a3 {[%clk 0:02:29]}  Bxc5 {[%clk 0:02:54]} 6. Qg4 {[%clk 0:02:28]}  Ne7 {[%clk 0:02:52]} 7. Bd3 {[%clk 0:02:27]}  O-O {[%clk 0:02:48]} 8. Nf3 {[%clk 0:02:27]}  Ng6 {[%clk 0:02:43]} 9. Qg3 {[%clk 0:02:15]}  f5 {[%clk 0:02:38]} 10. h4 {[%clk 0:02:08]}  Nc6 {[%clk 0:02:30]} 11. Bf4 {[%clk 0:01:50]}  Qb6 {[%clk 0:02:23]} 12. O-O {[%clk 0:01:43]}  Qxb2 {[%clk 0:02:21]} 13. Nbd2 {[%clk 0:01:44]}  Qb6 {[%clk 0:02:10]} 14. c4 {[%clk 0:01:41]}  d4 {[%clk 0:02:04]} 15. h5 {[%clk 0:01:32]}  Nxf4 {[%clk 0:02:03]} 16. Qxf4 {[%clk 0:01:33]}  h6 {[%clk 0:02:04]} 17. Rab1 {[%clk 0:01:23]}  Qc7 {[%clk 0:02:03]} 18. Nb3 {[%clk 0:01:22]}  b6 {[%clk 0:02:02]} 19. Nbxd4 {[%clk 0:01:18]}  Nxd4 {[%clk 0:01:56]} 20. Nxd4 {[%clk 0:01:18]}  Rd8 {[%clk 0:01:55]} 21. Nb5 {[%clk 0:01:17]}  Qf7 {[%clk 0:01:54]} 22. Be2 {[%clk 0:01:16]}  Bb7 {[%clk 0:01:48]} 23. Rbd1 {[%clk 0:01:16]}  Qe7 {[%clk 0:01:37]} 24. Bf3 {[%clk 0:01:13]}  Bxf3 {[%clk 0:01:34]} 25. Qxf3 {[%clk 0:01:14]}  a6 {[%clk 0:01:29]} 26. Nd6 {[%clk 0:01:14]}  Ra7 {[%clk 0:01:26]} 27. Qc6 {[%clk 0:00:51]}  Rad7 {[%clk 0:01:25]} 28. Rd3 {[%clk 0:00:44]}  Bxd6 {[%clk 0:01:03]} 29. Rfd1 {[%clk 0:00:43]}  Qh4 {[%clk 0:00:50]} 30. Rxd6 {[%clk 0:00:33]}  Rxd6 {[%clk 0:00:49]} 31. Rxd6 {[%clk 0:00:24]}  Rf8 {[%clk 0:00:48]} 32. Rd7 {[%clk 0:00:20]}  Qxh5 {[%clk 0:00:25]} 33. Qxe6+ {[%clk 0:00:20]}  Kh8 {[%clk 0:00:25]} 34. Qxb6 {[%clk 0:00:20]}  f4 {[%clk 0:00:22]} 35. Qd6 {[%clk 0:00:19]}  Rf5 {[%clk 0:00:20]} 36. e6 {[%clk 0:00:16]}  Re5 {[%clk 0:00:20]} 37. Rd8+ {[%clk 0:00:16]}  Kh7 {[%clk 0:00:20]} 38. Qd3+ {[%clk 0:00:16]}  Qg6 {[%clk 0:00:19]} 39. Rh8+ {[%clk 0:00:14]}  Kxh8 {[%clk 0:00:18]} 40. Qxg6 {[%clk 0:00:15]} 1-0


[Site "https://www.chess.com"]

[Event "Titled Tuesday Blitz January 17 Early 2023"]
[White "Krzyzanowski, Marcin"]
[Black "Guliev, Logman"]
[WhiteFideId "1132199"]
[BlackFideId "13400061"]
[WhiteElo "2512"]
[BlackElo "2250"]
[Result "1-0"]
[Round "08"]
[TimeControl "180+2"]
[Date "2023.01.17"]
[WhiteClock "0:01:47"]
[BlackClock "0:00:56"]

1. e4 {[%clk 0:03:00]}  c5 {[%clk 0:02:59]} 2. Nf3 {[%clk 0:03:00]}  d6 {[%clk 0:02:58]} 3. Bb5+ {[%clk 0:02:59]}  Bd7 {[%clk 0:02:58]} 4. Bxd7+ {[%clk 0:02:59]}  Nxd7 {[%clk 0:02:58]} 5. O-O {[%clk 0:02:57]}  Ngf6 {[%clk 0:02:58]} 6. Re1 {[%clk 0:02:57]}  g6 {[%clk 0:02:57]} 7. c3 {[%clk 0:02:57]}  Bg7 {[%clk 0:02:52]} 8. d4 {[%clk 0:02:57]}  cxd4 {[%clk 0:02:52]} 9. cxd4 {[%clk 0:02:58]}  O-O {[%clk 0:02:52]} 10. Nc3 {[%clk 0:02:59]}  a6 {[%clk 0:02:47]} 11. h3 {[%clk 0:02:56]}  e6 {[%clk 0:02:41]} 12. Bg5 {[%clk 0:02:50]}  Qa5 {[%clk 0:02:38]} 13. Qd2 {[%clk 0:02:46]}  Rfe8 {[%clk 0:02:17]} 14. Rad1 {[%clk 0:02:37]}  e5 {[%clk 0:02:03]} 15. a3 {[%clk 0:02:29]}  Rac8 {[%clk 0:01:56]} 16. Bh6 {[%clk 0:02:20]}  exd4 {[%clk 0:01:51]} 17. Nxd4 {[%clk 0:02:18]}  Nxe4 {[%clk 0:01:05]} 18. Rxe4 {[%clk 0:01:59]}  Rxe4 {[%clk 0:01:04]} 19. Bxg7 {[%clk 0:02:00]}  Rxc3 {[%clk 0:00:56]} 20. Nb3 {[%clk 0:01:47]} 1-0


[Site "https://www.chess.com"]

[Event "Titled Tuesday Blitz January 17 Early 2023"]
[White "Janaszak, Dawid"]
[Black "Demchenko, Anton"]
[WhiteFideId "1119206"]
[BlackFideId "4160258"]
[WhiteElo "2316"]
[BlackElo "2623"]
[Result "0-1"]
[Round "08"]
[TimeControl "180+2"]
[Date "2023.01.17"]
[WhiteClock "0:00:20"]
[BlackClock "0:00:36"]

1. d4 {[%clk 0:03:00]}  Nf6 {[%clk 0:02:56]} 2. Nf3 {[%clk 0:03:00]}  e6 {[%clk 0:02:56]} 3. Bg5 {[%clk 0:02:59]}  c5 {[%clk 0:02:51]} 4. e3 {[%clk 0:02:53]}  h6 {[%clk 0:02:48]} 5. Bxf6 {[%clk 0:02:52]}  Qxf6 {[%clk 0:02:47]} 6. Nc3 {[%clk 0:02:47]}  cxd4 {[%clk 0:02:38]} 7. Nxd4 {[%clk 0:02:46]}  a6 {[%clk 0:02:33]} 8. Qd3 {[%clk 0:02:40]}  Nc6 {[%clk 0:02:28]} 9. O-O-O {[%clk 0:02:39]}  d5 {[%clk 0:02:27]} 10. f4 {[%clk 0:02:34]}  Nxd4 {[%clk 0:02:21]} 11. Qxd4 {[%clk 0:02:33]}  Qxd4 {[%clk 0:02:21]} 12. Rxd4 {[%clk 0:02:30]}  Bc5 {[%clk 0:02:20]} 13. Rd3 {[%clk 0:02:30]}  Bd7 {[%clk 0:01:49]} 14. Be2 {[%clk 0:02:29]}  Rc8 {[%clk 0:01:40]} 15. Bf3 {[%clk 0:02:26]}  Bc6 {[%clk 0:01:35]} 16. e4 {[%clk 0:02:20]}  d4 {[%clk 0:01:33]} 17. Ne2 {[%clk 0:02:12]}  Bb5 {[%clk 0:01:34]} 18. Rdd1 {[%clk 0:01:57]}  Rd8 {[%clk 0:01:33]} 19. Kb1 {[%clk 0:01:41]}  d3 {[%clk 0:01:29]} 20. cxd3 {[%clk 0:01:39]}  Bxd3+ {[%clk 0:01:28]} 21. Ka1 {[%clk 0:01:38]}  Ke7 {[%clk 0:01:28]} 22. e5 {[%clk 0:01:31]}  b6 {[%clk 0:01:26]} 23. Ng3 {[%clk 0:01:18]}  Be3 {[%clk 0:01:20]} 24. Be2 {[%clk 0:01:15]}  Bg6 {[%clk 0:01:10]} 25. f5 {[%clk 0:00:58]}  exf5 {[%clk 0:01:07]} 26. Bh5 {[%clk 0:00:44]}  f4 {[%clk 0:01:05]} 27. Bxg6 {[%clk 0:00:43]}  Rxd1+ {[%clk 0:00:51]} 28. Rxd1 {[%clk 0:00:40]}  fxg3 {[%clk 0:00:52]} 29. Bf5 {[%clk 0:00:34]}  gxh2 {[%clk 0:00:52]} 30. Be4 {[%clk 0:00:27]}  Rd8 {[%clk 0:00:48]} 31. Re1 {[%clk 0:00:24]}  Bf2 {[%clk 0:00:46]} 32. Rf1 {[%clk 0:00:24]}  Bg3 {[%clk 0:00:44]} 33. a4 {[%clk 0:00:23]}  Rd2 {[%clk 0:00:42]} 34. Bb7 {[%clk 0:00:21]}  Bxe5 {[%clk 0:00:41]} 35. Re1 {[%clk 0:00:20]}  Kd6 {[%clk 0:00:39]} 36. Bxa6 {[%clk 0:00:20]}  Rxb2 {[%clk 0:00:36]} 0-1


[Site "https://www.chess.com"]

[Event "Titled Tuesday Blitz January 17 Early 2023"]
[White "UnknownMagician"]
[Black "Grandelius, Nils"]
[BlackFideId "1710400"]
[WhiteElo "2637"]
[BlackElo "2664"]
[Result "0-1"]
[Round "08"]
[TimeControl "180+2"]
[Date "2023.01.17"]
[WhiteClock "0:00:05"]
[BlackClock "0:00:27"]

1. c4 {[%clk 0:03:00]}  b6 {[%clk 0:02:58]} 2. Nc3 {[%clk 0:03:00]}  Bb7 {[%clk 0:02:58]} 3. e3 {[%clk 0:03:01]}  g6 {[%clk 0:02:55]} 4. Nf3 {[%clk 0:02:59]}  Bg7 {[%clk 0:02:55]} 5. d4 {[%clk 0:03:00]}  Nf6 {[%clk 0:02:56]} 6. Be2 {[%clk 0:03:00]}  O-O {[%clk 0:02:55]} 7. O-O {[%clk 0:03:01]}  e6 {[%clk 0:02:54]} 8. b3 {[%clk 0:03:00]}  d6 {[%clk 0:02:50]} 9. Bb2 {[%clk 0:02:59]}  Ne4 {[%clk 0:02:49]} 10. Nxe4 {[%clk 0:02:59]}  Bxe4 {[%clk 0:02:50]} 11. Nd2 {[%clk 0:02:59]}  Bb7 {[%clk 0:02:51]} 12. Bf3 {[%clk 0:03:00]}  Qc8 {[%clk 0:02:52]} 13. Bxb7 {[%clk 0:02:58]}  Qxb7 {[%clk 0:02:53]} 14. Rb1 {[%clk 0:02:58]}  Nd7 {[%clk 0:02:52]} 15. Qf3 {[%clk 0:02:58]}  Qxf3 {[%clk 0:02:48]} 16. Nxf3 {[%clk 0:02:59]}  a6 {[%clk 0:02:48]} 17. Rfd1 {[%clk 0:02:57]}  b5 {[%clk 0:02:43]} 18. e4 {[%clk 0:02:45]}  bxc4 {[%clk 0:02:41]} 19. bxc4 {[%clk 0:02:46]}  Rfb8 {[%clk 0:02:40]} 20. Ba3 {[%clk 0:02:39]}  Nb6 {[%clk 0:02:33]} 21. Rdc1 {[%clk 0:02:28]}  Bh6 {[%clk 0:02:32]} 22. Rc3 {[%clk 0:02:03]}  Nxc4 {[%clk 0:02:27]} 23. Rxb8+ {[%clk 0:02:04]}  Rxb8 {[%clk 0:02:27]} 24. g4 {[%clk 0:02:05]}  Nxa3 {[%clk 0:02:12]} 25. Rxa3 {[%clk 0:02:05]}  Rb6 {[%clk 0:02:12]} 26. d5 {[%clk 0:02:02]}  Bg7 {[%clk 0:01:59]} 27. Ra4 {[%clk 0:01:58]}  exd5 {[%clk 0:01:37]} 28. exd5 {[%clk 0:01:59]}  c5 {[%clk 0:01:38]} 29. dxc6 {[%clk 0:01:57]}  Rxc6 {[%clk 0:01:38]} 30. Nd2 {[%clk 0:01:46]}  d5 {[%clk 0:01:18]} 31. Kg2 {[%clk 0:01:34]}  Bf8 {[%clk 0:01:06]} 32. Nf3 {[%clk 0:01:29]}  Kg7 {[%clk 0:01:01]} 33. Ne5 {[%clk 0:01:23]}  Re6 {[%clk 0:00:53]} 34. Nd7 {[%clk 0:00:55]}  Be7 {[%clk 0:00:32]} 35. Nb8 {[%clk 0:00:48]}  Re2 {[%clk 0:00:33]} 36. Kf3 {[%clk 0:00:46]}  Rb2 {[%clk 0:00:30]} 37. Nxa6 {[%clk 0:00:44]}  Bh4 {[%clk 0:00:30]} 38. Nc7 {[%clk 0:00:22]}  d4 {[%clk 0:00:31]} 39. Rxd4 {[%clk 0:00:19]}  Rxf2+ {[%clk 0:00:31]} 40. Ke4 {[%clk 0:00:18]}  Rxa2 {[%clk 0:00:32]} 41. h3 {[%clk 0:00:16]}  Re2+ {[%clk 0:00:28]} 42. Kd5 {[%clk 0:00:15]}  Re3 {[%clk 0:00:26]} 43. Kd6 {[%clk 0:00:03]}  Bg3+ {[%clk 0:00:25]} 44. Kd7 {[%clk 0:00:04]}  Bxc7 {[%clk 0:00:25]} 45. Kxc7 {[%clk 0:00:05]}  Rxh3 {[%clk 0:00:25]} 46. Kd6 {[%clk 0:00:05]}  h5 {[%clk 0:00:26]} 47. gxh5 {[%clk 0:00:05]}  Rxh5 {[%clk 0:00:27]} 0-1


[Site "https://www.chess.com"]

[Event "Titled Tuesday Blitz January 17 Early 2023"]
[White "Murzin, Volodar"]
[Black "Mohamed Anees M"]
[WhiteFideId "44155573"]
[BlackFideId "35065815"]
[WhiteElo "2604"]
[BlackElo "2315"]
[Result "1-0"]
[Round "08"]
[TimeControl "180+2"]
[Date "2023.01.17"]
[WhiteClock "0:00:22"]
[BlackClock "0:00:03"]

1. Nf3 {[%clk 0:02:47]}  d5 {[%clk 0:02:59]} 2. g3 {[%clk 0:02:47]}  Nf6 {[%clk 0:02:59]} 3. Bg2 {[%clk 0:02:47]}  Bf5 {[%clk 0:02:59]} 4. O-O {[%clk 0:02:47]}  e6 {[%clk 0:02:49]} 5. d3 {[%clk 0:02:44]}  h6 {[%clk 0:02:48]} 6. Nbd2 {[%clk 0:02:36]}  Be7 {[%clk 0:02:48]} 7. Qe1 {[%clk 0:02:32]}  O-O {[%clk 0:02:44]} 8. e4 {[%clk 0:02:31]}  dxe4 {[%clk 0:02:44]} 9. dxe4 {[%clk 0:02:31]}  Bh7 {[%clk 0:02:45]} 10. Qe2 {[%clk 0:02:30]}  c5 {[%clk 0:02:45]} 11. Rd1 {[%clk 0:02:27]}  Nc6 {[%clk 0:02:42]} 12. e5 {[%clk 0:01:59]}  Nd5 {[%clk 0:02:36]} 13. c4 {[%clk 0:01:58]}  Ndb4 {[%clk 0:02:34]} 14. Ne4 {[%clk 0:01:56]}  Nd4 {[%clk 0:02:32]} 15. Nxd4 {[%clk 0:01:49]}  cxd4 {[%clk 0:02:33]} 16. Bf4 {[%clk 0:01:43]}  Nc6 {[%clk 0:02:28]} 17. h4 {[%clk 0:01:40]}  Qb6 {[%clk 0:02:15]} 18. Rac1 {[%clk 0:01:30]}  Rad8 {[%clk 0:02:12]} 19. c5 {[%clk 0:01:24]}  Qa5 {[%clk 0:02:03]} 20. a3 {[%clk 0:01:24]}  Qa4 {[%clk 0:01:43]} 21. Rd2 {[%clk 0:00:33]}  Rd7 {[%clk 0:01:38]} 22. Nd6 {[%clk 0:00:32]}  g5 {[%clk 0:01:15]} 23. hxg5 {[%clk 0:00:31]}  hxg5 {[%clk 0:01:16]} 24. Bxg5 {[%clk 0:00:23]}  Bxg5 {[%clk 0:01:15]} 25. Qg4 {[%clk 0:00:24]}  Nxe5 {[%clk 0:00:41]} 26. Qxg5+ {[%clk 0:00:24]}  Ng6 {[%clk 0:00:41]} 27. Ne4 {[%clk 0:00:23]}  Rc7 {[%clk 0:00:03]} 28. Nf6+ {[%clk 0:00:22]} 1-0


[Site "https://www.chess.com"]

[Event "Titled Tuesday Blitz January 17 Early 2023"]
[White "Rustemov, Alexander"]
[Black "Aldokhin, Ivan"]
[WhiteFideId "4119002"]
[BlackFideId "24115720"]
[WhiteElo "2525"]
[BlackElo "2413"]
[Result "1-0"]
[Round "08"]
[TimeControl "180+2"]
[Date "2023.01.17"]
[WhiteClock "0:02:03"]
[BlackClock "0:00:03"]

1. d4 {[%clk 0:03:00]}  Nf6 {[%clk 0:02:26]} 2. c4 {[%clk 0:03:00]}  g6 {[%clk 0:02:26]} 3. Nf3 {[%clk 0:03:01]}  Bg7 {[%clk 0:02:26]} 4. g3 {[%clk 0:03:01]}  d6 {[%clk 0:02:27]} 5. Bg2 {[%clk 0:03:01]}  O-O {[%clk 0:02:28]} 6. Nc3 {[%clk 0:03:02]}  Nc6 {[%clk 0:02:29]} 7. O-O {[%clk 0:03:02]}  Bf5 {[%clk 0:02:29]} 8. Ne1 {[%clk 0:03:01]}  Qc8 {[%clk 0:00:28]} 9. e4 {[%clk 0:03:00]}  Bh3 {[%clk 0:00:28]} 10. f3 {[%clk 0:03:01]}  Bxg2 {[%clk 0:00:27]} 11. Kxg2 {[%clk 0:03:01]}  e5 {[%clk 0:00:27]} 12. d5 {[%clk 0:03:00]}  Ne7 {[%clk 0:00:28]} 13. Nd3 {[%clk 0:02:58]}  b6 {[%clk 0:00:27]} 14. Be3 {[%clk 0:02:57]}  Nd7 {[%clk 0:00:25]} 15. b4 {[%clk 0:02:53]}  f5 {[%clk 0:00:24]} 16. Qd2 {[%clk 0:02:50]}  Nf6 {[%clk 0:00:23]} 17. c5 {[%clk 0:02:45]}  h5 {[%clk 0:00:14]} 18. h3 {[%clk 0:02:42]}  f4 {[%clk 0:00:13]} 19. gxf4 {[%clk 0:02:41]}  exf4 {[%clk 0:00:13]} 20. Nxf4 {[%clk 0:02:41]}  h4 {[%clk 0:00:10]} 21. Ne6 {[%clk 0:02:38]}  Rf7 {[%clk 0:00:10]} 22. cxd6 {[%clk 0:02:23]}  cxd6 {[%clk 0:00:10]} 23. Rac1 {[%clk 0:02:23]}  Qd7 {[%clk 0:00:09]} 24. Ne2 {[%clk 0:02:15]}  Nh5 {[%clk 0:00:10]} 25. Rc7 {[%clk 0:02:13]}  Qe8 {[%clk 0:00:09]} 26. Rfc1 {[%clk 0:02:10]}  Be5 {[%clk 0:00:09]} 27. f4 {[%clk 0:02:09]}  Bh8 {[%clk 0:00:09]} 28. Bd4 {[%clk 0:02:07]}  Rc8 {[%clk 0:00:05]} 29. Bxh8 {[%clk 0:02:03]}  Kxh8 {[%clk 0:00:05]} 30. Rxc8 {[%clk 0:02:02]}  Nxc8 {[%clk 0:00:04]} 31. Qc3+ {[%clk 0:02:03]}  Kh7 {[%clk 0:00:03]} 32. Qxc8 {[%clk 0:02:03]} 1-0


[Site "https://www.chess.com"]

[Event "Titled Tuesday Blitz January 17 Early 2023"]
[White "Tsaruk, Maksim"]
[Black "Omelja, Artem"]
[WhiteFideId "13511173"]
[BlackFideId "14119846"]
[WhiteElo "2373"]
[BlackElo "2446"]
[Result "1-0"]
[Round "08"]
[TimeControl "180+2"]
[Date "2023.01.17"]
[WhiteClock "0:01:19"]
[BlackClock "0:00:02"]

1. e4 {[%clk 0:02:56]}  c5 {[%clk 0:02:58]} 2. Nf3 {[%clk 0:02:56]}  Nc6 {[%clk 0:02:54]} 3. Bb5 {[%clk 0:02:55]}  g6 {[%clk 0:02:53]} 4. Bxc6 {[%clk 0:02:54]}  bxc6 {[%clk 0:02:54]} 5. O-O {[%clk 0:02:55]}  Bg7 {[%clk 0:02:54]} 6. Re1 {[%clk 0:02:51]}  e5 {[%clk 0:02:53]} 7. d3 {[%clk 0:02:49]}  d6 {[%clk 0:02:47]} 8. a3 {[%clk 0:02:48]}  Ne7 {[%clk 0:02:26]} 9. b4 {[%clk 0:02:48]}  cxb4 {[%clk 0:02:25]} 10. axb4 {[%clk 0:02:49]}  O-O {[%clk 0:02:26]} 11. Be3 {[%clk 0:02:46]}  Qc7 {[%clk 0:02:26]} 12. Qd2 {[%clk 0:02:46]}  Rd8 {[%clk 0:02:24]} 13. Bh6 {[%clk 0:02:43]}  Bh8 {[%clk 0:02:24]} 14. Nc3 {[%clk 0:02:44]}  Bb7 {[%clk 0:02:16]} 15. Ra5 {[%clk 0:02:43]}  c5 {[%clk 0:01:55]} 16. Nb5 {[%clk 0:02:43]}  Qb6 {[%clk 0:01:55]} 17. bxc5 {[%clk 0:02:43]}  Qxc5 {[%clk 0:01:51]} 18. Be3 {[%clk 0:02:43]}  Qc8 {[%clk 0:01:47]} 19. Rxa7 {[%clk 0:02:42]}  Rxa7 {[%clk 0:01:46]} 20. Nxa7 {[%clk 0:02:42]}  Qg4 {[%clk 0:01:41]} 21. h3 {[%clk 0:02:42]}  Qh5 {[%clk 0:01:40]} 22. c4 {[%clk 0:02:29]}  f5 {[%clk 0:01:40]} 23. Qb4 {[%clk 0:02:22]}  Ba8 {[%clk 0:01:27]} 24. Bg5 {[%clk 0:02:22]}  fxe4 {[%clk 0:00:58]} 25. dxe4 {[%clk 0:02:23]}  Kf7 {[%clk 0:00:16]} 26. c5 {[%clk 0:02:12]}  d5 {[%clk 0:00:13]} 27. c6 {[%clk 0:02:11]}  Re8 {[%clk 0:00:09]} 28. Bxe7 {[%clk 0:02:07]}  Rxe7 {[%clk 0:00:09]} 29. exd5 {[%clk 0:01:53]}  Rxa7 {[%clk 0:00:09]} 30. Qb8 {[%clk 0:01:54]}  Ra3 {[%clk 0:00:04]} 31. Qxh8 {[%clk 0:01:53]}  e4 {[%clk 0:00:04]} 32. Ne5+ {[%clk 0:01:52]}  Ke7 {[%clk 0:00:03]} 33. c7 {[%clk 0:01:44]}  Rc3 {[%clk 0:00:03]} 34. Nc6+ {[%clk 0:01:43]}  Bxc6 {[%clk 0:00:02]} 35. Qxc3 {[%clk 0:01:44]}  Bd7 {[%clk 0:00:01]} 36. c8=Q {[%clk 0:01:40]}  Bxc8 {[%clk 0:00:01]} 37. Qxc8 {[%clk 0:01:40]}  Qxd5 {[%clk 0:00:02]} 38. Qg4 {[%clk 0:01:38]}  Kf6 {[%clk 0:00:02]} 39. Qxe4 {[%clk 0:01:39]}  Qd6 {[%clk 0:00:02]} 40. Qb7 {[%clk 0:01:30]}  h5 {[%clk 0:00:02]} 41. Ra1 {[%clk 0:01:30]}  Qd4 {[%clk 0:00:01]} 42. Ra6+ {[%clk 0:01:30]}  Kg5 {[%clk 0:00:01]} 43. Qe7+ {[%clk 0:01:28]}  Kh6 {[%clk 0:00:01]} 44. Qf8+ {[%clk 0:01:28]}  Kg5 {[%clk 0:00:01]} 45. Ra5+ {[%clk 0:01:25]}  Kh4 {[%clk 0:00:01]} 46. Qe7+ {[%clk 0:01:19]}  g5 {[%clk 0:00:02]} 47. Qxg5# {[%clk 0:01:19]} 1-0


[Site "https://www.chess.com"]

[Event "Titled Tuesday Blitz January 17 Early 2023"]
[White "Rakhmanov, Aleksandr"]
[Black "Bosnjak, Petar"]
[WhiteFideId "4173708"]
[BlackFideId "14532581"]
[WhiteElo "2632"]
[BlackElo "2337"]
[Result "1-0"]
[Round "08"]
[TimeControl "180+2"]
[Date "2023.01.17"]
[WhiteClock "0:00:33"]
[BlackClock "0:00:18"]

1. d4 {[%clk 0:03:00]}  c6 {[%clk 0:03:00]} 2. c4 {[%clk 0:03:00]}  d5 {[%clk 0:03:01]} 3. cxd5 {[%clk 0:03:01]}  cxd5 {[%clk 0:03:01]} 4. Nf3 {[%clk 0:03:02]}  Nc6 {[%clk 0:02:59]} 5. Nc3 {[%clk 0:03:03]}  Nf6 {[%clk 0:02:59]} 6. Bf4 {[%clk 0:03:03]}  a6 {[%clk 0:02:59]} 7. Ne5 {[%clk 0:03:03]}  e6 {[%clk 0:02:52]} 8. e3 {[%clk 0:03:02]}  Bd6 {[%clk 0:02:47]} 9. Bd3 {[%clk 0:03:03]}  O-O {[%clk 0:02:46]} 10. Rc1 {[%clk 0:03:00]}  Qe7 {[%clk 0:02:35]} 11. Bg3 {[%clk 0:02:58]}  Bd7 {[%clk 0:02:25]} 12. f4 {[%clk 0:02:56]}  g6 {[%clk 0:02:23]} 13. Bh4 {[%clk 0:02:55]}  Rfc8 {[%clk 0:01:35]} 14. Bxf6 {[%clk 0:02:31]}  Qxf6 {[%clk 0:01:32]} 15. Nxd7 {[%clk 0:02:31]}  Qd8 {[%clk 0:01:32]} 16. Ne5 {[%clk 0:02:31]}  Rc7 {[%clk 0:01:28]} 17. O-O {[%clk 0:02:28]}  Rac8 {[%clk 0:01:20]} 18. Qg4 {[%clk 0:02:16]}  Nb4 {[%clk 0:01:16]} 19. Bb1 {[%clk 0:02:14]}  Nc6 {[%clk 0:01:09]} 20. Rf3 {[%clk 0:01:54]}  f5 {[%clk 0:00:49]} 21. Qh3 {[%clk 0:01:51]}  Nxe5 {[%clk 0:00:37]} 22. fxe5 {[%clk 0:01:49]}  Bb4 {[%clk 0:00:37]} 23. g4 {[%clk 0:01:41]}  Qg5 {[%clk 0:00:35]} 24. Qg3 {[%clk 0:01:08]}  Qxg4 {[%clk 0:00:33]} 25. Qxg4 {[%clk 0:01:02]}  fxg4 {[%clk 0:00:34]} 26. Rff1 {[%clk 0:00:50]}  Bxc3 {[%clk 0:00:31]} 27. bxc3 {[%clk 0:00:51]}  Rxc3 {[%clk 0:00:32]} 28. Rxc3 {[%clk 0:00:50]}  Rxc3 {[%clk 0:00:31]} 29. Kf2 {[%clk 0:00:51]}  b5 {[%clk 0:00:30]} 30. Ke2 {[%clk 0:00:51]}  Rc4 {[%clk 0:00:29]} 31. Kd2 {[%clk 0:00:43]}  Rc8 {[%clk 0:00:26]} 32. Rf4 {[%clk 0:00:39]}  Kg7 {[%clk 0:00:22]} 33. Rxg4 {[%clk 0:00:37]}  a5 {[%clk 0:00:22]} 34. Rf4 {[%clk 0:00:37]}  b4 {[%clk 0:00:20]} 35. Bc2 {[%clk 0:00:37]}  Rc3 {[%clk 0:00:18]} 36. Bb3 {[%clk 0:00:33]} 1-0


[Site "https://www.chess.com"]

[Event "Titled Tuesday Blitz January 17 Early 2023"]
[White "Garakov, Mikhael"]
[Black "Borges Feria, Yasel"]
[WhiteFideId "4169034"]
[BlackFideId "3504921"]
[WhiteElo "2447"]
[BlackElo "2439"]
[Result "1/2-1/2"]
[Round "08"]
[TimeControl "180+2"]
[Date "2023.01.17"]
[WhiteClock "0:02:28"]
[BlackClock "0:02:01"]

1. e4 {[%clk 0:03:00]}  e5 {[%clk 0:02:59]} 2. Nf3 {[%clk 0:03:00]}  Nc6 {[%clk 0:02:59]} 3. Bb5 {[%clk 0:03:00]}  a6 {[%clk 0:02:59]} 4. Bxc6 {[%clk 0:03:00]}  dxc6 {[%clk 0:03:00]} 5. O-O {[%clk 0:02:59]}  f6 {[%clk 0:02:57]} 6. d4 {[%clk 0:02:59]}  exd4 {[%clk 0:02:57]} 7. Nxd4 {[%clk 0:03:00]}  c5 {[%clk 0:02:57]} 8. Nb3 {[%clk 0:03:00]}  Qxd1 {[%clk 0:02:58]} 9. Rxd1 {[%clk 0:03:01]}  Bg4 {[%clk 0:02:58]} 10. f3 {[%clk 0:02:59]}  Bd7 {[%clk 0:02:59]} 11. Nc3 {[%clk 0:02:59]}  O-O-O {[%clk 0:02:58]} 12. Bf4 {[%clk 0:02:58]}  c4 {[%clk 0:02:53]} 13. Na5 {[%clk 0:02:58]}  Bc5+ {[%clk 0:02:53]} 14. Kh1 {[%clk 0:02:42]}  b5 {[%clk 0:02:53]} 15. Nd5 {[%clk 0:02:42]}  Ne7 {[%clk 0:02:09]} 16. Bxc7 {[%clk 0:02:35]}  Nxd5 {[%clk 0:02:09]} 17. Rxd5 {[%clk 0:02:34]}  Kxc7 {[%clk 0:02:09]} 18. Rxc5+ {[%clk 0:02:34]}  Kb6 {[%clk 0:02:10]} 19. b4 {[%clk 0:02:34]}  cxb3 {[%clk 0:02:10]} 20. Nxb3 {[%clk 0:02:33]}  Be6 {[%clk 0:02:07]} 21. Rc3 {[%clk 0:02:28]}  Rc8 {[%clk 0:02:01]} 1/2-1/2


[Site "https://www.chess.com"]